[Event "*** Titled Tuesday Blitz"]
[Site "Chess.com"]
[Date "2018.07.03"]
[Round "3"]
[White "eljanov"]
[Black "ftorodent"]
[Result "1/2-1/2"]
[WhiteElo "2634"]
[BlackElo "2497"]
[TimeControl "180+2"]
[EndTime "13:39:21 PDT"]
[Termination "Game drawn by repetition"]

1. c4 {[%clk 0:03:01.9]} 1... e6 {[%clk 0:03:00.5]} 2. Nc3 {[%clk 0:03:00]} 2...
d5 {[%clk 0:03:01.4]} 3. d4 {[%clk 0:03:00.5]} 3... Be7 {[%clk 0:03:01.3]} 4.
Nf3 {[%clk 0:02:58.3]} 4... Nf6 {[%clk 0:03:01.4]} 5. Bf4 {[%clk 0:02:57.9]}
5... O-O {[%clk 0:03:02]} 6. e3 {[%clk 0:02:58.9]} 6... Nbd7 {[%clk 0:03:03]} 7.
c5 {[%clk 0:02:59.1]} 7... c6 {[%clk 0:03:03.1]} 8. h3 {[%clk 0:02:54.7]} 8...
b6 {[%clk 0:03:03.8]} 9. b4 {[%clk 0:02:54.8]} 9... a5 {[%clk 0:03:04.8]} 10. a3
{[%clk 0:02:56.1]} 10... Bb7 {[%clk 0:03:06]} 11. Bd3 {[%clk 0:02:55.8]} 11...
Qc8 {[%clk 0:03:07.1]} 12. O-O {[%clk 0:02:56.8]} 12... Ba6 {[%clk 0:03:08.1]}
13. Re1 {[%clk 0:02:41.3]} 13... Bxd3 {[%clk 0:03:08.1]} 14. Qxd3 {[%clk
0:02:42.2]} 14... Qb7 {[%clk 0:03:09.1]} 15. Qc2 {[%clk 0:02:26.6]} 15... Rfc8
{[%clk 0:03:05.8]} 16. Reb1 {[%clk 0:02:21.3]} 16... axb4 {[%clk 0:03:01.8]} 17.
axb4 {[%clk 0:02:22]} 17... h6 {[%clk 0:02:57.1]} 18. Ne1 {[%clk 0:02:13.4]}
18... Bd8 {[%clk 0:02:56.1]} 19. Nd3 {[%clk 0:02:13]} 19... Bc7 {[%clk
0:02:54.6]} 20. Bxc7 {[%clk 0:01:38.8]} 20... Qxc7 {[%clk 0:02:55.4]} 21. f4
{[%clk 0:01:39.9]} 21... Qb7 {[%clk 0:02:22.2]} 22. Kh2 {[%clk 0:01:28.9]} 22...
Rxa1 {[%clk 0:02:13.9]} 23. Rxa1 {[%clk 0:01:29.5]} 23... Ra8 {[%clk 0:02:15.4]}
24. Ra4 {[%clk 0:01:18.4]} 24... b5 {[%clk 0:02:07.3]} 25. Ra2 {[%clk
0:01:10.8]} 25... Ra6 {[%clk 0:02:04]} 26. Nc1 {[%clk 0:01:02.7]} 26... Qa7
{[%clk 0:01:58.7]} 27. g4 {[%clk 0:00:52.9]} 27... Rxa2 {[%clk 0:01:56.1]} 28.
Qxa2 {[%clk 0:00:53.1]} 28... Qxa2+ {[%clk 0:01:56.6]} 29. N1xa2 {[%clk
0:00:54.2]} 29... Nb8 {[%clk 0:01:52.3]} 30. Kg3 {[%clk 0:00:46.7]} 30... Nfd7
{[%clk 0:01:46.4]} 31. h4 {[%clk 0:00:38.5]} 31... f5 {[%clk 0:01:39.6]} 32. Nc1
{[%clk 0:00:27.5]} 32... Kf7 {[%clk 0:01:14.9]} 33. Nd3 {[%clk 0:00:28.1]} 33...
Na6 {[%clk 0:01:14.1]} 34. g5 {[%clk 0:00:19.9]} 34... h5 {[%clk 0:01:12.1]} 35.
Nb1 {[%clk 0:00:21]} 35... g6 {[%clk 0:01:07.9]} 36. Nd2 {[%clk 0:00:22.1]}
36... Nab8 {[%clk 0:01:02]} 37. Nb3 {[%clk 0:00:23.1]} 37... Ke7 {[%clk
0:00:56.4]} 38. Na5 {[%clk 0:00:24]} 38... Kd8 {[%clk 0:00:55.2]} 39. Nb7+
{[%clk 0:00:25.1]} 39... Ke7 {[%clk 0:00:55.4]} 40. Kf3 {[%clk 0:00:24.7]} 40...
Na6 {[%clk 0:00:53.1]} 41. Ke2 {[%clk 0:00:25.1]} 41... Nab8 {[%clk 0:00:54.2]}
42. Kd2 {[%clk 0:00:22.3]} 42... Na6 {[%clk 0:00:55.3]} 43. Kc3 {[%clk
0:00:23.4]} 43... Nab8 {[%clk 0:00:56.4]} 44. Nc1 {[%clk 0:00:24.4]} 44... Nf8
{[%clk 0:00:51.1]} 45. Nb3 {[%clk 0:00:24.4]} 45... Nfd7 {[%clk 0:00:51.1]} 46.
N3a5 {[%clk 0:00:23.7]} 46... Nf8 {[%clk 0:00:51.8]} 47. Nd6 {[%clk 0:00:24.6]}
47... Nfd7 {[%clk 0:00:51.9]} 48. Kb3 {[%clk 0:00:21.5]} 48... Nf8 {[%clk
0:00:48.4]} 49. Nab7 {[%clk 0:00:22.4]} 49... Kd7 {[%clk 0:00:43.4]} 50. Nf7
{[%clk 0:00:23.4]} 50... Kc7 {[%clk 0:00:39.1]} 51. Nbd6 {[%clk 0:00:23.6]}
51... Kd7 {[%clk 0:00:31.4]} 52. Ne5+ {[%clk 0:00:23.2]} 52... Kd8 {[%clk
0:00:31.3]} 53. Ndf7+ {[%clk 0:00:22.5]} 53... Ke7 {[%clk 0:00:32.4]} 54. Nh8
{[%clk 0:00:23.5]} 54... Ke8 {[%clk 0:00:27.5]} 55. Nhxg6 {[%clk 0:00:24.4]}
55... Nxg6 {[%clk 0:00:28.6]} 56. Nxg6 {[%clk 0:00:25.5]} 56... Kf7 {[%clk
0:00:30.2]} 57. Ne5+ {[%clk 0:00:26.2]} 57... Kg7 {[%clk 0:00:30.5]} 58. Kc3
{[%clk 0:00:26.4]} 58... Kg8 {[%clk 0:00:30.1]} 59. Kd3 {[%clk 0:00:24.5]} 59...
Kg7 {[%clk 0:00:31.2]} 60. Ke2 {[%clk 0:00:20.8]} 60... Kg8 {[%clk 0:00:32.2]}
61. Kf3 {[%clk 0:00:18.2]} 61... Kg7 {[%clk 0:00:33.4]} 62. Kf2 {[%clk
0:00:18.3]} 62... Kg8 {[%clk 0:00:34.4]} 63. Ke2 {[%clk 0:00:13.8]} 63... Kg7
{[%clk 0:00:35.4]} 64. Kd3 {[%clk 0:00:14.2]} 64... Kg8 {[%clk 0:00:36.6]} 65.
Kd2 {[%clk 0:00:15.3]} 65... Kg7 {[%clk 0:00:37.8]} 66. Kc3 {[%clk 0:00:16.6]}
66... Kg8 {[%clk 0:00:39]} 67. Kd3 {[%clk 0:00:17.7]} 67... Kg7 {[%clk
0:00:40.2]} 68. Ke2 {[%clk 0:00:18.8]} 68... Kg8 {[%clk 0:00:41.3]} 69. Kf3
{[%clk 0:00:19.6]} 69... Kg7 {[%clk 0:00:42.5]} 70. Kf2 {[%clk 0:00:20.8]} 70...
Kg8 {[%clk 0:00:43.6]} 71. Ke2 {[%clk 0:00:22.2]} 71... Kg7 {[%clk 0:00:44.8]}
72. Kd3 {[%clk 0:00:23.6]} 72... Kg8 {[%clk 0:00:45.9]} 73. e4 {[%clk 0:00:25]}
73... dxe4+ {[%clk 0:00:37.2]} 74. Ke3 {[%clk 0:00:25.5]} 74... Kg7 {[%clk
0:00:38.3]} 75. d5 {[%clk 0:00:19.9]} 75... exd5 {[%clk 0:00:35.9]} 76. Kd4
{[%clk 0:00:21.1]} 76... Kg8 {[%clk 0:00:35.2]} 77. Ng6 {[%clk 0:00:21.2]} 77...
Kf7 {[%clk 0:00:35.7]} 78. Ne5+ {[%clk 0:00:21.8]} 78... Kg7 {[%clk 0:00:35.5]}
79. Ke3 {[%clk 0:00:20.8]} 79... Kg8 {[%clk 0:00:36.2]} 80. Kd4 {[%clk
0:00:21.2]} 80... Kg7 {[%clk 0:00:36.8]} 81. Kc3 {[%clk 0:00:21.7]} 81... Kg8
{[%clk 0:00:37.6]} 82. Kd4 {[%clk 0:00:18.2]} 82... Kg7 {[%clk 0:00:38.6]}
1/2-1/2

[Event "*** Titled Tuesday Blitz"]
[Site "Chess.com"]
[Date "2018.07.03"]
[Round "3"]
[White "ahmadzada13"]
[Black "Alopekos"]
[Result "1/2-1/2"]
[WhiteElo "2504"]
[BlackElo "2409"]
[TimeControl "180+2"]
[EndTime "13:42:13 PDT"]
[Termination "Game drawn - insufficient material"]

1. e4 {[%clk 0:03:01.9]} 1... e5 {[%clk 0:02:49.5]} 2. Nf3 {[%clk 0:03:02.6]}
2... Nc6 {[%clk 0:02:50.8]} 3. Bb5 {[%clk 0:03:03]} 3... a6 {[%clk 0:02:52.2]}
4. Bxc6 {[%clk 0:03:03.2]} 4... dxc6 {[%clk 0:02:53.1]} 5. d4 {[%clk 0:03:04.6]}
5... exd4 {[%clk 0:02:50.4]} 6. Qxd4 {[%clk 0:03:05.8]} 6... Qxd4 {[%clk
0:02:50.7]} 7. Nxd4 {[%clk 0:03:07.2]} 7... f6 {[%clk 0:02:43.8]} 8. Nc3 {[%clk
0:03:05.7]} 8... Bd6 {[%clk 0:02:43.9]} 9. Nde2 {[%clk 0:03:06.2]} 9... Ne7
{[%clk 0:02:39]} 10. Bf4 {[%clk 0:03:07]} 10... Ng6 {[%clk 0:02:38.3]} 11. Bxd6
{[%clk 0:03:06.8]} 11... cxd6 {[%clk 0:02:40.2]} 12. O-O-O {[%clk 0:03:07.6]}
12... Ke7 {[%clk 0:02:40.1]} 13. f3 {[%clk 0:02:57.6]} 13... Be6 {[%clk
0:02:23]} 14. Rd2 {[%clk 0:02:50.8]} 14... Rhd8 {[%clk 0:02:22.8]} 15. h4 {[%clk
0:02:41.2]} 15... Ne5 {[%clk 0:02:09.5]} 16. Nf4 {[%clk 0:02:30.7]} 16... Bf7
{[%clk 0:02:05.2]} 17. Nce2 {[%clk 0:01:57.9]} 17... Nc4 {[%clk 0:01:40]} 18.
Rd3 {[%clk 0:01:52.3]} 18... Ne5 {[%clk 0:01:22.9]} 19. Rd2 {[%clk 0:01:47.5]}
19... Nc4 {[%clk 0:01:22.7]} 20. Rd3 {[%clk 0:01:43.1]} 20... Ne5 {[%clk
0:01:22.4]} 21. Rdd1 {[%clk 0:01:43.2]} 21... g6 {[%clk 0:00:47.2]} 22. Nd4
{[%clk 0:01:33.2]} 22... h5 {[%clk 0:00:33.6]} 23. Rd2 {[%clk 0:01:06.8]} 23...
d5 {[%clk 0:00:20.7]} 24. exd5 {[%clk 0:01:02.3]} 24... Bxd5 {[%clk 0:00:21.5]}
25. Re1 {[%clk 0:00:34.5]} 25... Kf7 {[%clk 0:00:21.6]} 26. b3 {[%clk 0:00:17]}
26... c5 {[%clk 0:00:22.8]} 27. Nde2 {[%clk 0:00:13]} 27... Bc6 {[%clk 0:00:21]}
28. Rxd8 {[%clk 0:00:13.7]} 28... Rxd8 {[%clk 0:00:22.9]} 29. Nc3 {[%clk
0:00:15.3]} 29... c4 {[%clk 0:00:18.3]} 30. Ne4 {[%clk 0:00:13.1]} 30... cxb3
{[%clk 0:00:16.1]} 31. axb3 {[%clk 0:00:13.1]} 31... a5 {[%clk 0:00:11.6]} 32.
Nc5 {[%clk 0:00:13.9]} 32... Rc8 {[%clk 0:00:11.1]} 33. Nce6 {[%clk 0:00:12.4]}
33... Bd7 {[%clk 0:00:09.2]} 34. Nd4 {[%clk 0:00:11]} 34... a4 {[%clk
0:00:10.4]} 35. Kb2 {[%clk 0:00:11.7]} 35... axb3 {[%clk 0:00:11]} 36. cxb3
{[%clk 0:00:11]} 36... Be8 {[%clk 0:00:03.5]} 37. Re2 {[%clk 0:00:10.3]} 37...
Rd8 {[%clk 0:00:04.8]} 38. Kc3 {[%clk 0:00:09]} 38... Rc8+ {[%clk 0:00:05.8]}
39. Kb4 {[%clk 0:00:10.4]} 39... Rc1 {[%clk 0:00:04.8]} 40. Rc2 {[%clk
0:00:07.3]} 40... Nc6+ {[%clk 0:00:04]} 41. Kc3 {[%clk 0:00:06.7]} 41... Rxc2+
{[%clk 0:00:04.5]} 42. Nxc2 {[%clk 0:00:08.1]} 42... Ke7 {[%clk 0:00:03.2]} 43.
Nd5+ {[%clk 0:00:07.4]} 43... Kf7 {[%clk 0:00:03.1]} 44. Nd4 {[%clk 0:00:08.5]}
44... g5 {[%clk 0:00:03.9]} 45. hxg5 {[%clk 0:00:07.7]} 45... fxg5 {[%clk
0:00:05.8]} 46. Ne2 {[%clk 0:00:06.8]} 46... Kg6 {[%clk 0:00:04.5]} 47. Ne3
{[%clk 0:00:05.6]} 47... Ne5 {[%clk 0:00:04.1]} 48. Kd4 {[%clk 0:00:06.5]} 48...
Nc6+ {[%clk 0:00:03.7]} 49. Kc3 {[%clk 0:00:05.6]} 49... Bf7 {[%clk 0:00:04.2]}
50. b4 {[%clk 0:00:06.8]} 50... Ne7 {[%clk 0:00:04.8]} 51. b5 {[%clk 0:00:07.9]}
51... Nd5+ {[%clk 0:00:02.7]} 52. Nxd5 {[%clk 0:00:08.6]} 52... Bxd5 {[%clk
0:00:04.6]} 53. Kd4 {[%clk 0:00:10.2]} 53... Be6 {[%clk 0:00:03]} 54. b6 {[%clk
0:00:10.2]} 54... g4 {[%clk 0:00:03]} 55. Nf4+ {[%clk 0:00:10.1]} 55... Kf5
{[%clk 0:00:03.9]} 56. Nxh5 {[%clk 0:00:06.7]} 56... gxf3 {[%clk 0:00:05.3]} 57.
gxf3 {[%clk 0:00:07.2]} 57... Bd7 {[%clk 0:00:05.7]} 58. f4 {[%clk 0:00:05.7]}
58... Bc6 {[%clk 0:00:05]} 59. Ke3 {[%clk 0:00:06.2]} 59... Kg6 {[%clk
0:00:04.7]} 60. Ng3 {[%clk 0:00:06.4]} 60... Kf6 {[%clk 0:00:06.1]} 61. Kd4
{[%clk 0:00:08]} 61... Ke6 {[%clk 0:00:06]} 62. Kc5 {[%clk 0:00:07.4]} 62... Bf3
{[%clk 0:00:06]} 63. Kd4 {[%clk 0:00:08.5]} 63... Bc6 {[%clk 0:00:06.7]} 64. Kc5
{[%clk 0:00:08.6]} 64... Bf3 {[%clk 0:00:07.6]} 65. f5+ {[%clk 0:00:03.6]} 65...
Ke5 {[%clk 0:00:07.5]} 66. Kb5 {[%clk 0:00:04]} 66... Bc6+ {[%clk 0:00:04.1]}
67. Kc5 {[%clk 0:00:04.5]} 67... Bf3 {[%clk 0:00:05.7]} 68. Kb5 {[%clk
0:00:04.5]} 68... Bc6+ {[%clk 0:00:06.5]} 69. Kc5 {[%clk 0:00:05.9]} 69... Bf3
{[%clk 0:00:08.4]} 70. Nf1 {[%clk 0:00:07]} 70... Kxf5 {[%clk 0:00:08.4]} 71.
Nd2 {[%clk 0:00:08.5]} 71... Bc6 {[%clk 0:00:08.7]} 72. Nc4 {[%clk 0:00:09.1]}
72... Ke6 {[%clk 0:00:09.5]} 73. Na5 {[%clk 0:00:09.2]} 73... Bh1 {[%clk
0:00:10]} 74. Nc4 {[%clk 0:00:09.5]} 74... Bg2 {[%clk 0:00:09.3]} 75. Nd6 {[%clk
0:00:10]} 75... Kd7 {[%clk 0:00:09.5]} 76. Nb5 {[%clk 0:00:10.2]} 76... Bh1
{[%clk 0:00:10.2]} 77. Nc3 {[%clk 0:00:11.2]} 77... Bg2 {[%clk 0:00:11]} 78. Ne2
{[%clk 0:00:12]} 78... Bh1 {[%clk 0:00:11.6]} 79. Nf4 {[%clk 0:00:13.5]} 79...
Bf3 {[%clk 0:00:11.3]} 80. Ng6 {[%clk 0:00:13.6]} 80... Bh1 {[%clk 0:00:11.7]}
81. Ne5+ {[%clk 0:00:12.5]} 81... Ke7 {[%clk 0:00:12.1]} 82. Nc4 {[%clk
0:00:12.6]} 82... Kd7 {[%clk 0:00:12.3]} 83. Ne3 {[%clk 0:00:13.2]} 83... Ke7
{[%clk 0:00:12.1]} 84. Nc2 {[%clk 0:00:11.6]} 84... Kd7 {[%clk 0:00:12.4]} 85.
Nb4 {[%clk 0:00:12.4]} 85... Ke7 {[%clk 0:00:11.9]} 86. Nd3 {[%clk 0:00:12.4]}
86... Kd7 {[%clk 0:00:12.9]} 87. Nf2 {[%clk 0:00:12.8]} 87... Bg2 {[%clk
0:00:13.4]} 88. Ng4 {[%clk 0:00:13.3]} 88... Bh1 {[%clk 0:00:13.1]} 89. Nf6+
{[%clk 0:00:12.8]} 89... Ke7 {[%clk 0:00:13.6]} 90. Ng4 {[%clk 0:00:12.6]} 90...
Kd7 {[%clk 0:00:13.5]} 91. Ne3 {[%clk 0:00:13.1]} 91... Ke7 {[%clk 0:00:14]} 92.
Nd1 {[%clk 0:00:11.6]} 92... Kd7 {[%clk 0:00:14.4]} 93. Nf2 {[%clk 0:00:12.6]}
93... Bg2 {[%clk 0:00:14.8]} 94. Ng4 {[%clk 0:00:12.8]} 94... Bh1 {[%clk
0:00:14.9]} 95. Ne3 {[%clk 0:00:11.1]} 95... Ke7 {[%clk 0:00:15.3]} 96. Nc4
{[%clk 0:00:07.9]} 96... Kd7 {[%clk 0:00:15.8]} 97. Nd6 {[%clk 0:00:08.1]} 97...
Bg2 {[%clk 0:00:15.4]} 98. Nf5 {[%clk 0:00:08]} 98... Bh1 {[%clk 0:00:15.8]} 99.
Ng3 {[%clk 0:00:08.7]} 99... Bg2 {[%clk 0:00:16.6]} 100. Nh5 {[%clk 0:00:09.9]}
100... Bh1 {[%clk 0:00:16.5]} 101. Nf4 {[%clk 0:00:10]} 101... Bf3 {[%clk
0:00:16.7]} 102. Kb5 {[%clk 0:00:08.9]} 102... Bc6+ {[%clk 0:00:16.6]} 103. Kc5
{[%clk 0:00:09.5]} 103... Bh1 {[%clk 0:00:15.9]} 104. Ng6 {[%clk 0:00:10.4]}
104... Bg2 {[%clk 0:00:14.9]} 105. Ne5+ {[%clk 0:00:10.2]} 105... Ke7 {[%clk
0:00:15.1]} 106. Nd3 {[%clk 0:00:11]} 106... Bh1 {[%clk 0:00:14.9]} 107. Nf4
{[%clk 0:00:11.3]} 107... Kd7 {[%clk 0:00:14.9]} 108. Ng6 {[%clk 0:00:10.6]}
108... Bg2 {[%clk 0:00:14.6]} 109. Kb5 {[%clk 0:00:10.4]} 109... Kd6 {[%clk
0:00:11.1]} 110. Nf4 {[%clk 0:00:10.7]} 110... Bc6+ {[%clk 0:00:11.3]} 111. Kc4
{[%clk 0:00:09.5]} 111... Bh1 {[%clk 0:00:08.8]} 112. Nd3 {[%clk 0:00:08.6]}
112... Kc6 {[%clk 0:00:08.5]} 113. Nc5 {[%clk 0:00:09.7]} 113... Kxb6 {[%clk
0:00:08.8]} 114. Nxb7 {[%clk 0:00:10.8]} 114... Kxb7 {[%clk 0:00:10.7]} 1/2-1/2

[Event "*** Titled Tuesday Blitz"]
[Site "Chess.com"]
[Date "2018.07.03"]
[Round "4"]
[White "Sven_Tica"]
[Black "Bryakin_Mikhail"]
[Result "1/2-1/2"]
[WhiteElo "2656"]
[BlackElo "2623"]
[TimeControl "180+2"]
[EndTime "13:45:14 PDT"]
[Termination "Game drawn by agreement"]

1. d4 {[%clk 0:03:01.2]} 1... d5 {[%clk 0:03:00.1]} 2. c4 {[%clk 0:03:02.2]}
2... c6 {[%clk 0:03:01.6]} 3. Nf3 {[%clk 0:03:03.3]} 3... Nf6 {[%clk 0:03:03.1]}
4. e3 {[%clk 0:03:04.6]} 4... Bf5 {[%clk 0:03:03.2]} 5. Nc3 {[%clk 0:03:05.6]}
5... e6 {[%clk 0:03:04.7]} 6. Nh4 {[%clk 0:03:06.8]} 6... Be4 {[%clk 0:03:06.2]}
7. f3 {[%clk 0:03:08]} 7... Bg6 {[%clk 0:03:07.8]} 8. Qb3 {[%clk 0:03:09]} 8...
Qb6 {[%clk 0:03:06.7]} 9. Bd2 {[%clk 0:03:07.5]} 9... Nbd7 {[%clk 0:03:06.9]}
10. Nxg6 {[%clk 0:03:04]} 10... hxg6 {[%clk 0:03:07.8]} 11. g3 {[%clk
0:03:03.6]} 11... Qxb3 {[%clk 0:03:01.8]} 12. axb3 {[%clk 0:03:03.5]} 12... Be7
{[%clk 0:02:53.1]} 13. Bd3 {[%clk 0:03:03.3]} 13... O-O {[%clk 0:02:54]} 14. O-O
{[%clk 0:02:55.7]} 14... a6 {[%clk 0:02:51.8]} 15. f4 {[%clk 0:02:53.5]} 15...
Rfc8 {[%clk 0:02:46.3]} 16. c5 {[%clk 0:02:54.5]} 16... Ne8 {[%clk 0:02:41.2]}
17. b4 {[%clk 0:02:52.9]} 17... f5 {[%clk 0:02:41.1]} 18. Kf2 {[%clk 0:02:52.5]}
18... Nc7 {[%clk 0:02:41.5]} 19. g4 {[%clk 0:02:51.7]} 19... Nf6 {[%clk
0:02:42.2]} 20. g5 {[%clk 0:02:51.4]} 20... Ne4+ {[%clk 0:02:38.8]} 21. Bxe4
{[%clk 0:02:46]} 21... dxe4 {[%clk 0:02:34.7]} 22. h4 {[%clk 0:02:46.2]} 22...
Kf7 {[%clk 0:02:35.1]} 23. Kg3 {[%clk 0:02:44]} 23... Rh8 {[%clk 0:02:36.4]} 24.
Rh1 {[%clk 0:02:40.4]} 24... Rac8 {[%clk 0:02:35.1]} 1/2-1/2

[Event "*** Titled Tuesday Blitz"]
[Site "Chess.com"]
[Date "2018.07.03"]
[Round "4"]
[White "FairChess_on_YouTube"]
[Black "Bauxi435"]
[Result "1-0"]
[WhiteElo "2916"]
[BlackElo "2431"]
[TimeControl "180+2"]
[EndTime "13:46:02 PDT"]
[Termination "FairChess_on_YouTube won by resignation"]

1. c4 {[%clk 0:03:01.9]} 1... Nf6 {[%clk 0:03:00.3]} 2. Nc3 {[%clk 0:03:02.8]}
2... c5 {[%clk 0:02:58.6]} 3. Nf3 {[%clk 0:03:03.1]} 3... d5 {[%clk 0:02:58.1]}
4. cxd5 {[%clk 0:03:04]} 4... Nxd5 {[%clk 0:03:00]} 5. e3 {[%clk 0:03:01.8]}
5... Nc6 {[%clk 0:02:59.4]} 6. Bb5 {[%clk 0:03:01.2]} 6... Nc7 {[%clk
0:02:56.4]} 7. Bxc6+ {[%clk 0:03:00.8]} 7... bxc6 {[%clk 0:02:58.3]} 8. Qa4
{[%clk 0:02:59.4]} 8... e6 {[%clk 0:02:46.9]} 9. O-O {[%clk 0:02:53.5]} 9... Bd6
{[%clk 0:02:43.2]} 10. Qxc6+ {[%clk 0:02:49.6]} 10... Ke7 {[%clk 0:02:38.5]} 11.
Ne4 {[%clk 0:02:43.8]} 11... Rb8 {[%clk 0:02:37.2]} 12. d4 {[%clk 0:02:37.5]}
12... Rb6 {[%clk 0:02:15]} 13. Qa4 {[%clk 0:02:35.1]} 13... cxd4 {[%clk
0:02:12.1]} 14. Nxd4 {[%clk 0:02:33.6]} 14... Bb7 {[%clk 0:02:05.1]} 15. Nxd6
{[%clk 0:02:32.1]} 15... Qxd6 {[%clk 0:02:02.2]} 16. b3 {[%clk 0:02:32.9]} 16...
Qd5 {[%clk 0:01:59]} 17. Ba3+ {[%clk 0:02:30.1]} 17... Kf6 {[%clk 0:01:56.4]}
18. Nf3 {[%clk 0:02:30.8]} 18... h6 {[%clk 0:01:51.7]} 19. Qf4+ {[%clk
0:02:29.5]} 19... Kg6 {[%clk 0:01:52.6]} 20. Qxc7 {[%clk 0:02:28.6]} 20... Rb5
{[%clk 0:01:49.6]} 21. Rad1 {[%clk 0:02:23.7]} 21... Qe4 {[%clk 0:01:47.7]} 22.
Rd4 {[%clk 0:02:21.9]} 1-0

[Event "*** Titled Tuesday Blitz"]
[Site "Chess.com"]
[Date "2018.07.03"]
[Round "4"]
[White "Shant_Sargsyan"]
[Black "Swarnapuri"]
[Result "1-0"]
[WhiteElo "2892"]
[BlackElo "2564"]
[TimeControl "180+2"]
[EndTime "13:46:12 PDT"]
[Termination "Shant_Sargsyan won by resignation"]

1. Nf3 {[%clk 0:03:00.8]} 1... Nc6 {[%clk 0:03:01.9]} 2. d4 {[%clk 0:03:02.1]}
2... d5 {[%clk 0:03:02.4]} 3. Bf4 {[%clk 0:03:02.9]} 3... Bg4 {[%clk 0:03:03.7]}
4. e3 {[%clk 0:03:04.2]} 4... e6 {[%clk 0:03:05.1]} 5. Be2 {[%clk 0:03:04.8]}
5... Bd6 {[%clk 0:03:06.5]} 6. Bxd6 {[%clk 0:03:03.2]} 6... cxd6 {[%clk
0:03:08.4]} 7. Nbd2 {[%clk 0:03:02.2]} 7... Nf6 {[%clk 0:03:08.6]} 8. O-O {[%clk
0:03:03.3]} 8... O-O {[%clk 0:03:08.9]} 9. c3 {[%clk 0:03:03.3]} 9... a6 {[%clk
0:03:09.5]} 10. h3 {[%clk 0:03:04.4]} 10... Bh5 {[%clk 0:03:10.3]} 11. a4 {[%clk
0:03:02.3]} 11... Rb8 {[%clk 0:03:04.4]} 12. b4 {[%clk 0:03:02.4]} 12... a5
{[%clk 0:02:53.5]} 13. Qb3 {[%clk 0:03:01.1]} 13... Ne4 {[%clk 0:02:52.7]} 14.
Rfe1 {[%clk 0:02:47.7]} 14... Qb6 {[%clk 0:02:44.4]} 15. Rab1 {[%clk 0:02:42.1]}
15... Rfc8 {[%clk 0:02:42.4]} 16. Nxe4 {[%clk 0:02:42.4]} 16... dxe4 {[%clk
0:02:42.8]} 17. Nd2 {[%clk 0:02:43.8]} 17... Bxe2 {[%clk 0:02:43.1]} 18. Rxe2
{[%clk 0:02:45.7]} 18... d5 {[%clk 0:02:42.8]} 19. b5 {[%clk 0:02:44.6]} 19...
Ne7 {[%clk 0:02:42.2]} 20. c4 {[%clk 0:02:45.6]} 20... dxc4 {[%clk 0:02:41.2]}
21. Nxc4 {[%clk 0:02:47.5]} 21... Qd8 {[%clk 0:02:42.3]} 22. Rc2 {[%clk
0:02:34.1]} 22... Nd5 {[%clk 0:02:39.9]} 23. Rcc1 {[%clk 0:02:19.3]} 23... Nb4
{[%clk 0:02:36.3]} 24. b6 {[%clk 0:02:10]} 24... Nc6 {[%clk 0:02:36.5]} 25. Qb5
{[%clk 0:02:08.6]} 25... Qd5 {[%clk 0:02:34.3]} 26. Qxd5 {[%clk 0:02:05.9]}
26... exd5 {[%clk 0:02:36.2]} 27. Nd6 {[%clk 0:02:07.7]} 27... Rd8 {[%clk
0:02:37.6]} 28. Nxb7 {[%clk 0:02:09.1]} 28... Nb4 {[%clk 0:02:39]} 29. Nxd8
{[%clk 0:02:08.1]} 1-0

[Event "*** Titled Tuesday Blitz"]
[Site "Chess.com"]
[Date "2018.07.03"]
[Round "4"]
[White "colegiodemadrid"]
[Black "Sordis"]
[Result "1-0"]
[WhiteElo "2220"]
[BlackElo "2266"]
[TimeControl "180+2"]
[EndTime "13:46:46 PDT"]
[Termination "colegiodemadrid won by resignation"]

1. e4 {[%clk 0:03:01.4]} 1... c5 {[%clk 0:03:00.4]} 2. Nf3 {[%clk 0:03:01.9]}
2... d6 {[%clk 0:03:01.4]} 3. d4 {[%clk 0:03:03.2]} 3... cxd4 {[%clk 0:03:03.2]}
4. Nxd4 {[%clk 0:03:04.8]} 4... Nf6 {[%clk 0:03:04.6]} 5. Nc3 {[%clk 0:03:06.4]}
5... g6 {[%clk 0:03:04.9]} 6. Be3 {[%clk 0:03:07.3]} 6... Bg7 {[%clk 0:03:06.1]}
7. f3 {[%clk 0:03:07.6]} 7... O-O {[%clk 0:03:07.1]} 8. Qd2 {[%clk 0:03:09.1]}
8... Nc6 {[%clk 0:03:08.6]} 9. O-O-O {[%clk 0:03:10.6]} 9... d5 {[%clk
0:03:09.6]} 10. Kb1 {[%clk 0:03:12.2]} 10... e6 {[%clk 0:03:07.5]} 11. h3 {[%clk
0:02:53.3]} 11... Nxd4 {[%clk 0:03:04]} 12. Bxd4 {[%clk 0:02:47.8]} 12... dxe4
{[%clk 0:03:02.6]} 13. fxe4 {[%clk 0:02:49.1]} 13... b6 {[%clk 0:02:56.3]} 14.
g4 {[%clk 0:02:49.8]} 14... Bb7 {[%clk 0:02:55.7]} 15. Bg2 {[%clk 0:02:50.7]}
15... Qe7 {[%clk 0:02:51.2]} 16. Rhf1 {[%clk 0:02:39.2]} 16... Rfd8 {[%clk
0:02:50.7]} 17. Qf2 {[%clk 0:02:39.3]} 17... Nd7 {[%clk 0:02:37]} 18. Bxg7
{[%clk 0:02:30.1]} 18... Kxg7 {[%clk 0:02:38.9]} 19. h4 {[%clk 0:02:31.5]} 19...
Ne5 {[%clk 0:02:37.2]} 20. g5 {[%clk 0:02:27.9]} 20... Rac8 {[%clk 0:02:33]} 21.
Qf4 {[%clk 0:02:23.9]} 21... Nc4 {[%clk 0:02:26.2]} 22. h5 {[%clk 0:02:20.8]}
22... gxh5 {[%clk 0:02:21.3]} 23. b3 {[%clk 0:02:08.5]} 23... Na3+ {[%clk
0:02:17.2]} 24. Kb2 {[%clk 0:02:09.1]} 24... Qb4 {[%clk 0:02:10.8]} 25. Qxf7+
{[%clk 0:02:04.4]} 25... Kh8 {[%clk 0:02:11.6]} 26. Qf6+ {[%clk 0:02:04]} 26...
Kg8 {[%clk 0:02:12.8]} 27. Qxe6+ {[%clk 0:02:04.5]} 27... Kh8 {[%clk 0:02:14]}
28. Rxd8+ {[%clk 0:01:57.2]} 28... Rxd8 {[%clk 0:02:11.4]} 29. Qf6+ {[%clk
0:01:57.3]} 29... Kg8 {[%clk 0:02:13]} 30. Qxd8+ {[%clk 0:01:58.5]} 30... Kg7
{[%clk 0:02:14.9]} 31. Qf6+ {[%clk 0:01:56.7]} 31... Kg8 {[%clk 0:02:15.8]} 32.
Qf7+ {[%clk 0:01:58]} 32... Kh8 {[%clk 0:02:16.9]} 33. Qf8+ {[%clk 0:01:59.5]}
33... Qxf8 {[%clk 0:02:18.4]} 34. Rxf8+ {[%clk 0:02:00.6]} 34... Kg7 {[%clk
0:02:20.3]} 35. Rb8 {[%clk 0:02:00.2]} 1-0